[Event "Titled Tuesday Blitz May 24 Late 2022"]
[White "Bryakin, Mikhail"]
[Black "Petrovic, Aleksa"]
[WhiteFideId "4165314"]
[BlackFideId "967629"]
[WhiteElo "2417"]
[BlackElo "2144"]
[Result "1-0"]
[Round "01"]
[TimeControl "180+1"]
[Date "2022.05.25"]
[WhiteClock "0:00:06"]
[BlackClock "0:00:03"]

1. e4 {[%clk 0:02:54]}  e6 {[%clk 0:02:57]} 2. d4 {[%clk 0:02:50]}  d5 {[%clk 0:02:57]} 3. Nc3 {[%clk 0:02:46]}  Bb4 {[%clk 0:02:57]} 4. exd5 {[%clk 0:02:45]}  exd5 {[%clk 0:02:56]} 5. a3 {[%clk 0:02:45]}  Bxc3+ {[%clk 0:02:56]} 6. bxc3 {[%clk 0:02:46]}  Nd7 {[%clk 0:02:47]} 7. Bd3 {[%clk 0:02:44]}  Ndf6 {[%clk 0:02:44]} 8. Qf3 {[%clk 0:02:44]}  Bg4 {[%clk 0:02:28]} 9. Qg3 {[%clk 0:02:41]}  Qe7+ {[%clk 0:02:26]} 10. Ne2 {[%clk 0:02:40]}  Bxe2 {[%clk 0:02:23]} 11. Bxe2 {[%clk 0:02:40]}  Ne4 {[%clk 0:02:21]} 12. Qe3 {[%clk 0:02:38]}  Ngf6 {[%clk 0:02:17]} 13. f3 {[%clk 0:02:37]}  Nd6 {[%clk 0:02:16]} 14. Qxe7+ {[%clk 0:02:36]}  Kxe7 {[%clk 0:02:17]} 15. Kf2 {[%clk 0:02:32]}  h6 {[%clk 0:02:13]} 16. h4 {[%clk 0:02:26]}  Rhe8 {[%clk 0:02:06]} 17. a4 {[%clk 0:02:26]}  Kd7 {[%clk 0:02:03]} 18. Bd3 {[%clk 0:02:25]}  Rac8 {[%clk 0:01:43]} 19. Bf4 {[%clk 0:02:23]}  c5 {[%clk 0:01:36]} 20. h5 {[%clk 0:02:03]}  c4 {[%clk 0:01:17]} 21. Bf1 {[%clk 0:02:03]}  Nh7 {[%clk 0:01:07]} 22. g3 {[%clk 0:01:48]}  Kc6 {[%clk 0:00:51]} 23. Bh3 {[%clk 0:01:47]}  Rc7 {[%clk 0:00:51]} 24. Rhe1 {[%clk 0:01:42]}  Rce7 {[%clk 0:00:50]} 25. Rxe7 {[%clk 0:01:41]}  Rxe7 {[%clk 0:00:51]} 26. Rb1 {[%clk 0:01:38]}  Ng5 {[%clk 0:00:43]} 27. Bg2 {[%clk 0:01:36]}  Ne6 {[%clk 0:00:42]} 28. Bc1 {[%clk 0:01:36]}  Nc8 {[%clk 0:00:35]} 29. Ba3 {[%clk 0:01:35]}  Rd7 {[%clk 0:00:35]} 30. a5 {[%clk 0:01:34]}  b6 {[%clk 0:00:32]} 31. axb6 {[%clk 0:01:33]}  Nxb6 {[%clk 0:00:32]} 32. Bb4 {[%clk 0:01:31]}  Na4 {[%clk 0:00:30]} 33. Ra1 {[%clk 0:01:30]}  Kb5 {[%clk 0:00:30]} 34. f4 {[%clk 0:01:25]}  a5 {[%clk 0:00:30]} 35. Ba3 {[%clk 0:01:19]}  Nxc3 {[%clk 0:00:30]} 36. Ke3 {[%clk 0:01:02]}  Rd8 {[%clk 0:00:30]} 37. Bb2 {[%clk 0:00:56]}  Na4 {[%clk 0:00:28]} 38. Ba3 {[%clk 0:00:56]}  Re8 {[%clk 0:00:28]} 39. Rb1+ {[%clk 0:00:56]}  Kc6 {[%clk 0:00:27]} 40. Ra1 {[%clk 0:00:50]}  Nec5+ {[%clk 0:00:23]} 41. Kf3 {[%clk 0:00:49]}  Ne4 {[%clk 0:00:24]} 42. Bc1 {[%clk 0:00:45]}  Nec3 {[%clk 0:00:21]} 43. Be3 {[%clk 0:00:38]}  Kb5 {[%clk 0:00:20]} 44. Bh3 {[%clk 0:00:37]}  Re7 {[%clk 0:00:19]} 45. g4 {[%clk 0:00:34]}  Nb2 {[%clk 0:00:19]} 46. g5 {[%clk 0:00:34]}  a4 {[%clk 0:00:19]} 47. gxh6 {[%clk 0:00:33]}  gxh6 {[%clk 0:00:20]} 48. f5 {[%clk 0:00:34]}  Kb4 {[%clk 0:00:17]} 49. Bxh6 {[%clk 0:00:33]}  Re8 {[%clk 0:00:17]} 50. Bg7 {[%clk 0:00:30]}  a3 {[%clk 0:00:17]} 51. h6 {[%clk 0:00:31]}  a2 {[%clk 0:00:17]} 52. h7 {[%clk 0:00:30]}  Ka3 {[%clk 0:00:17]} 53. h8=Q {[%clk 0:00:22]}  Rxh8 {[%clk 0:00:17]} 54. Bxh8 {[%clk 0:00:23]}  Nbd1 {[%clk 0:00:17]} 55. f6 {[%clk 0:00:22]}  Kb2 {[%clk 0:00:17]} 56. Rxa2+ {[%clk 0:00:22]}  Nxa2 {[%clk 0:00:17]} 57. Be6 {[%clk 0:00:23]}  Nb4 {[%clk 0:00:15]} 58. Bxf7 {[%clk 0:00:22]}  Nxc2 {[%clk 0:00:13]} 59. Bxd5 {[%clk 0:00:22]}  Nxd4+ {[%clk 0:00:13]} 60. Ke4 {[%clk 0:00:22]}  c3 {[%clk 0:00:13]} 61. f7 {[%clk 0:00:22]}  c2 {[%clk 0:00:11]} 62. Bxd4+ {[%clk 0:00:23]}  Kb1 {[%clk 0:00:11]} 63. f8=Q {[%clk 0:00:21]}  c1=Q {[%clk 0:00:11]} 64. Qb8+ {[%clk 0:00:15]}  Nb2 {[%clk 0:00:11]} 65. Qa8 {[%clk 0:00:09]}  Qh1+ {[%clk 0:00:11]} 66. Kf5 {[%clk 0:00:08]}  Qh5+ {[%clk 0:00:10]} 67. Ke6 {[%clk 0:00:09]}  Qg6+ {[%clk 0:00:10]} 68. Bf6 {[%clk 0:00:09]}  Qg4+ {[%clk 0:00:10]} 69. Ke7 {[%clk 0:00:10]}  Qb4+ {[%clk 0:00:09]} 70. Kf7 {[%clk 0:00:09]}  Qf4 {[%clk 0:00:09]} 71. Qa2+ {[%clk 0:00:08]}  Kc2 {[%clk 0:00:08]} 72. Qxb2+ {[%clk 0:00:08]}  Kd3 {[%clk 0:00:08]} 73. Qb1+ {[%clk 0:00:06]}  Ke2 {[%clk 0:00:07]} 74. Qc2+ {[%clk 0:00:06]}  Kf1 {[%clk 0:00:05]} 75. Bc4+ {[%clk 0:00:05]}  Kg1 {[%clk 0:00:04]} 76. Qd1+ {[%clk 0:00:05]}  Kg2 {[%clk 0:00:04]} 77. Qe2+ {[%clk 0:00:05]}  Qf2 {[%clk 0:00:03]} 78. Bd5+ {[%clk 0:00:05]}  Kg1 {[%clk 0:00:02]} 79. Qg4+ {[%clk 0:00:06]}  Kf1 {[%clk 0:00:01]} 80. Bc4+ {[%clk 0:00:06]}  Ke1 {[%clk 0:00:01]} 81. Qe4+ {[%clk 0:00:06]}  Kd2 {[%clk 0:00:01]} 82. Qd3+ {[%clk 0:00:06]}  Kc1 {[%clk 0:00:01]} 83. Qc3+ {[%clk 0:00:07]}  Kd1 {[%clk 0:00:01]} 84. Bb3+ {[%clk 0:00:07]}  Ke2 {[%clk 0:00:01]} 85. Qc2+ {[%clk 0:00:07]}  Ke1 {[%clk 0:00:01]} 86. Qc1+ {[%clk 0:00:05]}  Ke2 {[%clk 0:00:02]} 87. Bc4+ {[%clk 0:00:05]}  Kf3 {[%clk 0:00:02]} 88. Qd1+ {[%clk 0:00:05]}  Kg2 {[%clk 0:00:02]} 89. Bd5+ {[%clk 0:00:06]}  Kg3 {[%clk 0:00:02]} 90. Qd3+ {[%clk 0:00:05]}  Kh2 {[%clk 0:00:03]} 91. Qh7+ {[%clk 0:00:06]}  Kg1 {[%clk 0:00:03]} 92. Qh1# {[%clk 0:00:06]} 1-0


[Site "https://www.chess.com"]

[Event "Titled Tuesday Blitz May 24 Late 2022"]
[White "Burke, Paul"]
[Black "Peralta, Eduardo"]
[WhiteFideId "2605767"]
[BlackFideId "3700062"]
[WhiteElo "1845"]
[BlackElo "2125"]
[Result "0-1"]
[Round "01"]
[TimeControl "180+1"]
[Date "2022.05.25"]
[WhiteClock "0:01:02"]
[BlackClock "0:01:51"]

1. e4 {[%clk 0:02:59]}  c5 {[%clk 0:02:59]} 2. d4 {[%clk 0:02:58]}  cxd4 {[%clk 0:02:59]} 3. c3 {[%clk 0:02:58]}  d3 {[%clk 0:03:00]} 4. Bxd3 {[%clk 0:02:57]}  Nc6 {[%clk 0:03:00]} 5. Nf3 {[%clk 0:02:57]}  g6 {[%clk 0:03:01]} 6. Bc4 {[%clk 0:02:57]}  Bg7 {[%clk 0:03:02]} 7. Bg5 {[%clk 0:02:57]}  d6 {[%clk 0:02:59]} 8. Qb3 {[%clk 0:02:57]}  Na5 {[%clk 0:02:50]} 9. Bxf7+ {[%clk 0:02:55]}  Kf8 {[%clk 0:02:23]} 10. Qd5 {[%clk 0:02:54]}  Nf6 {[%clk 0:02:21]} 11. Bxf6 {[%clk 0:02:53]}  Bxf6 {[%clk 0:02:22]} 12. e5 {[%clk 0:02:53]}  Nc6 {[%clk 0:02:13]} 13. exf6 {[%clk 0:02:33]}  exf6 {[%clk 0:02:13]} 14. O-O {[%clk 0:01:54]}  Qe7 {[%clk 0:02:13]} 15. Re1 {[%clk 0:01:48]}  Qxf7 {[%clk 0:02:06]} 16. Qxd6+ {[%clk 0:01:45]}  Kg7 {[%clk 0:02:06]} 17. Nbd2 {[%clk 0:01:42]}  Rd8 {[%clk 0:02:02]} 18. Qg3 {[%clk 0:01:40]}  Bf5 {[%clk 0:02:00]} 19. Nd4 {[%clk 0:01:24]}  Nxd4 {[%clk 0:01:59]} 20. cxd4 {[%clk 0:01:24]}  Rd7 {[%clk 0:01:59]} 21. Nf3 {[%clk 0:01:23]}  Rad8 {[%clk 0:01:58]} 22. Rac1 {[%clk 0:01:23]}  Qxa2 {[%clk 0:01:57]} 23. Nh4 {[%clk 0:01:07]}  Be6 {[%clk 0:01:55]} 24. Rxe6 {[%clk 0:01:05]}  Qxe6 {[%clk 0:01:54]} 25. h3 {[%clk 0:01:03]}  Rxd4 {[%clk 0:01:51]} 26. Nf3 {[%clk 0:01:01]}  Rd1+ {[%clk 0:01:49]} 27. Rxd1 {[%clk 0:01:01]}  Rxd1+ {[%clk 0:01:50]} 28. Kh2 {[%clk 0:01:02]}  Qd6 {[%clk 0:01:51]} 0-1


[Site "https://www.chess.com"]

[Event "Titled Tuesday Blitz May 24 Late 2022"]
[White "Cervantes Landeiro, Thalia"]
[Black "Hansen, Eric"]
[WhiteFideId "3520498"]
[BlackFideId "2606771"]
[WhiteElo "2021"]
[BlackElo "2568"]
[Result "0-1"]
[Round "01"]
[TimeControl "180+1"]
[Date "2022.05.24"]
[WhiteClock "0:00:03"]
[BlackClock "0:00:07"]

1. d4 {[%clk 0:03:00]}  Nf6 {[%clk 0:02:57]} 2. c4 {[%clk 0:03:00]}  e6 {[%clk 0:02:55]} 3. Nf3 {[%clk 0:03:00]}  b6 {[%clk 0:02:54]} 4. g3 {[%clk 0:03:00]}  Ba6 {[%clk 0:02:53]} 5. Qa4 {[%clk 0:02:59]}  Bb7 {[%clk 0:02:43]} 6. Bg2 {[%clk 0:02:59]}  Be7 {[%clk 0:02:31]} 7. O-O {[%clk 0:02:58]}  O-O {[%clk 0:02:32]} 8. Nc3 {[%clk 0:02:56]}  Ne4 {[%clk 0:02:31]} 9. Nxe4 {[%clk 0:02:42]}  Bxe4 {[%clk 0:02:32]} 10. Bf4 {[%clk 0:02:42]}  d6 {[%clk 0:02:27]} 11. Rfd1 {[%clk 0:02:41]}  Nd7 {[%clk 0:02:27]} 12. b4 {[%clk 0:02:25]}  a5 {[%clk 0:02:25]} 13. b5 {[%clk 0:02:25]}  Bf6 {[%clk 0:02:21]} 14. Rac1 {[%clk 0:02:23]}  Qe7 {[%clk 0:02:19]} 15. Qb3 {[%clk 0:02:13]}  a4 {[%clk 0:02:16]} 16. Qb4 {[%clk 0:02:13]}  h6 {[%clk 0:02:05]} 17. h4 {[%clk 0:02:10]}  Rfe8 {[%clk 0:02:04]} 18. Qd2 {[%clk 0:01:55]}  a3 {[%clk 0:01:54]} 19. Qe3 {[%clk 0:01:53]}  Bb7 {[%clk 0:01:52]} 20. Bh3 {[%clk 0:01:48]}  Nf8 {[%clk 0:01:45]} 21. Qb3 {[%clk 0:01:39]}  e5 {[%clk 0:01:44]} 22. dxe5 {[%clk 0:01:39]}  dxe5 {[%clk 0:01:44]} 23. Bd2 {[%clk 0:01:34]}  e4 {[%clk 0:01:43]} 24. Ne1 {[%clk 0:01:34]}  Bb2 {[%clk 0:01:34]} 25. Rb1 {[%clk 0:01:32]}  Ne6 {[%clk 0:01:34]} 26. Bc3 {[%clk 0:01:26]}  e3 {[%clk 0:01:23]} 27. f3 {[%clk 0:01:24]}  Nc5 {[%clk 0:01:22]} 28. Qc2 {[%clk 0:01:24]}  Na4 {[%clk 0:01:15]} 29. Rd7 {[%clk 0:01:16]}  Qc5 {[%clk 0:00:41]} 30. Bxb2 {[%clk 0:01:09]}  Nxb2 {[%clk 0:00:39]} 31. Nd3 {[%clk 0:00:57]}  Nxd3 {[%clk 0:00:39]} 32. Qxd3 {[%clk 0:00:56]}  Bxf3 {[%clk 0:00:36]} 33. Rf1 {[%clk 0:00:41]}  Be4 {[%clk 0:00:33]} 34. Qc3 {[%clk 0:00:34]}  Bg6 {[%clk 0:00:30]} 35. Rf3 {[%clk 0:00:30]}  Re4 {[%clk 0:00:26]} 36. Qd3 {[%clk 0:00:16]}  Rxc4 {[%clk 0:00:14]} 37. Rd8+ {[%clk 0:00:16]}  Rxd8 {[%clk 0:00:13]} 38. Qxd8+ {[%clk 0:00:17]}  Kh7 {[%clk 0:00:14]} 39. Qe8 {[%clk 0:00:14]}  Rc2 {[%clk 0:00:09]} 40. Qxe3 {[%clk 0:00:06]}  Rxa2 {[%clk 0:00:08]} 41. Qxc5 {[%clk 0:00:03]}  bxc5 {[%clk 0:00:08]} 42. Rc3 {[%clk 0:00:03]}  Be4 {[%clk 0:00:03]} 43. Rxc5 {[%clk 0:00:02]}  Rb2 {[%clk 0:00:03]} 44. Rxc7 {[%clk 0:00:01]}  a2 {[%clk 0:00:03]} 45. Ra7 {[%clk 0:00:02]}  Rb1+ {[%clk 0:00:03]} 46. Kf2 {[%clk 0:00:02]}  a1=Q {[%clk 0:00:04]} 47. Rxa1 {[%clk 0:00:02]}  Rxa1 {[%clk 0:00:05]} 48. Bd7 {[%clk 0:00:01]}  Rb1 {[%clk 0:00:05]} 49. Ke3 {[%clk 0:00:02]}  Bg2 {[%clk 0:00:05]} 50. Kd3 {[%clk 0:00:02]}  Kg6 {[%clk 0:00:05]} 51. Kc4 {[%clk 0:00:02]}  Kf6 {[%clk 0:00:05]} 52. Kc5 {[%clk 0:00:03]}  Ke7 {[%clk 0:00:06]} 53. Bc6 {[%clk 0:00:02]}  Rc1+ {[%clk 0:00:06]} 54. Kb6 {[%clk 0:00:02]}  Bxc6 {[%clk 0:00:06]} 55. bxc6 {[%clk 0:00:03]}  Kd6 {[%clk 0:00:07]} 0-1


[Site "https://www.chess.com"]

[Event "Titled Tuesday Blitz May 24 Late 2022"]
[White "D`Arruda, Ricardo D."]
[Black "Abdrlauf, Elham"]
[WhiteFideId "100692"]
[BlackFideId "1533533"]
[WhiteElo "2499"]
[BlackElo "2371"]
[Result "0-1"]
[Round "01"]
[TimeControl "180+1"]
[Date "2022.05.24"]
[WhiteClock "0:00:05"]
[BlackClock "0:00:11"]

1. d4 {[%clk 0:03:00]}  Nf6 {[%clk 0:02:54]} 2. Nf3 {[%clk 0:03:00]}  d5 {[%clk 0:02:54]} 3. c4 {[%clk 0:02:59]}  e6 {[%clk 0:02:54]} 4. Nc3 {[%clk 0:02:58]}  c6 {[%clk 0:02:55]} 5. e3 {[%clk 0:02:58]}  Nbd7 {[%clk 0:02:55]} 6. Bd3 {[%clk 0:02:59]}  dxc4 {[%clk 0:02:56]} 7. Bxc4 {[%clk 0:02:58]}  b5 {[%clk 0:02:56]} 8. Bb3 {[%clk 0:02:58]}  a6 {[%clk 0:02:56]} 9. O-O {[%clk 0:02:58]}  Bb7 {[%clk 0:02:56]} 10. e4 {[%clk 0:02:58]}  c5 {[%clk 0:02:57]} 11. e5 {[%clk 0:02:58]}  cxd4 {[%clk 0:02:54]} 12. Nxb5 {[%clk 0:02:57]}  axb5 {[%clk 0:02:44]} 13. exf6 {[%clk 0:02:57]}  Nxf6 {[%clk 0:02:33]} 14. Nxd4 {[%clk 0:02:50]}  Bc5 {[%clk 0:02:12]} 15. Be3 {[%clk 0:02:43]}  Qb6 {[%clk 0:01:58]} 16. Nc2 {[%clk 0:02:38]}  O-O {[%clk 0:01:50]} 17. Bxc5 {[%clk 0:02:28]}  Qxc5 {[%clk 0:01:51]} 18. Qd4 {[%clk 0:02:24]}  Qg5 {[%clk 0:01:43]} 19. f3 {[%clk 0:02:24]}  Rad8 {[%clk 0:01:41]} 20. Qe3 {[%clk 0:02:24]}  Qg6 {[%clk 0:01:28]} 21. Rad1 {[%clk 0:02:19]}  Bd5 {[%clk 0:01:27]} 22. Nd4 {[%clk 0:01:54]}  Bxb3 {[%clk 0:01:23]} 23. Qxb3 {[%clk 0:01:49]}  Nd5 {[%clk 0:01:17]} 24. Nc6 {[%clk 0:01:40]}  Rde8 {[%clk 0:01:02]} 25. Rd4 {[%clk 0:01:21]}  Qf6 {[%clk 0:00:50]} 26. Qxb5 {[%clk 0:00:50]}  Ne3 {[%clk 0:00:33]} 27. Rf2 {[%clk 0:00:44]}  Nf5 {[%clk 0:00:27]} 28. Rd1 {[%clk 0:00:39]}  Rc8 {[%clk 0:00:23]} 29. Rfd2 {[%clk 0:00:34]}  g6 {[%clk 0:00:21]} 30. Nd4 {[%clk 0:00:34]}  Ne3 {[%clk 0:00:19]} 31. Re1 {[%clk 0:00:32]}  Nd5 {[%clk 0:00:18]} 32. Nc6 {[%clk 0:00:27]}  Kg7 {[%clk 0:00:16]} 33. Rc2 {[%clk 0:00:22]}  Rc7 {[%clk 0:00:14]} 34. Qc5 {[%clk 0:00:19]}  Rfc8 {[%clk 0:00:14]} 35. Qd6 {[%clk 0:00:17]}  Ne7 {[%clk 0:00:09]} 36. Rec1 {[%clk 0:00:16]}  Nf5 {[%clk 0:00:10]} 37. Qd3 {[%clk 0:00:12]}  e5 {[%clk 0:00:08]} 38. Nb4 {[%clk 0:00:12]}  Qb6+ {[%clk 0:00:06]} 39. Kh1 {[%clk 0:00:08]}  Qxb4 {[%clk 0:00:06]} 40. Rxc7 {[%clk 0:00:06]}  Rxc7 {[%clk 0:00:07]} 41. Rd1 {[%clk 0:00:03]}  Qxb2 {[%clk 0:00:07]} 42. h3 {[%clk 0:00:02]}  Rc1 {[%clk 0:00:06]} 43. Rxc1 {[%clk 0:00:01]}  Qxc1+ {[%clk 0:00:07]} 44. Kh2 {[%clk 0:00:02]}  Qf4+ {[%clk 0:00:08]} 45. Kg1 {[%clk 0:00:02]}  Qd4+ {[%clk 0:00:08]} 46. Qxd4 {[%clk 0:00:02]}  Nxd4 {[%clk 0:00:09]} 47. Kf2 {[%clk 0:00:03]}  f5 {[%clk 0:00:09]} 48. Ke3 {[%clk 0:00:03]}  Kf6 {[%clk 0:00:09]} 49. Kd3 {[%clk 0:00:04]}  Ke6 {[%clk 0:00:09]} 50. Kc4 {[%clk 0:00:05]}  Kd6 {[%clk 0:00:09]} 51. a4 {[%clk 0:00:06]}  Nc6 {[%clk 0:00:10]} 52. Kb5 {[%clk 0:00:05]}  Kd5 {[%clk 0:00:10]} 53. a5 {[%clk 0:00:05]}  Nxa5 {[%clk 0:00:10]} 54. Kxa5 {[%clk 0:00:05]}  e4 {[%clk 0:00:11]} 0-1


[Site "https://www.chess.com"]

[Event "Titled Tuesday Blitz May 24 Late 2022"]
[White "De Souza, Regis Gabetta"]
[Black "Silva, Pedro Gil Ferreira Da"]
[WhiteFideId "22756930"]
[BlackFideId "1946102"]
[WhiteElo "1926"]
[BlackElo "1863"]
[Result "1-0"]
[Round "01"]
[TimeControl "180+1"]
[Date "2022.05.25"]
[WhiteClock "0:00:30"]
[BlackClock "0:00:16"]

1. d4 {[%clk 0:03:00]}  Nf6 {[%clk 0:02:57]} 2. c4 {[%clk 0:03:01]}  e6 {[%clk 0:02:53]} 3. Nc3 {[%clk 0:03:01]}  Bb4 {[%clk 0:02:52]} 4. e3 {[%clk 0:03:00]}  b6 {[%clk 0:02:42]} 5. Nf3 {[%clk 0:02:36]}  Bb7 {[%clk 0:02:41]} 6. Bd2 {[%clk 0:02:36]}  O-O {[%clk 0:02:40]} 7. Be2 {[%clk 0:02:36]}  d6 {[%clk 0:02:40]} 8. O-O {[%clk 0:02:36]}  Nbd7 {[%clk 0:02:39]} 9. a3 {[%clk 0:02:31]}  Bxc3 {[%clk 0:02:39]} 10. Bxc3 {[%clk 0:02:32]}  Ne4 {[%clk 0:02:39]} 11. Qc2 {[%clk 0:02:31]}  Ndf6 {[%clk 0:02:37]} 12. Rad1 {[%clk 0:02:27]}  Nxc3 {[%clk 0:02:33]} 13. Qxc3 {[%clk 0:02:26]}  Ne4 {[%clk 0:02:34]} 14. Qc2 {[%clk 0:02:26]}  Ng5 {[%clk 0:02:32]} 15. d5 {[%clk 0:02:14]}  Nxf3+ {[%clk 0:02:30]} 16. Bxf3 {[%clk 0:02:14]}  e5 {[%clk 0:02:31]} 17. e4 {[%clk 0:02:07]}  a5 {[%clk 0:02:30]} 18. b4 {[%clk 0:02:06]}  axb4 {[%clk 0:02:19]} 19. axb4 {[%clk 0:02:07]}  Ra3 {[%clk 0:02:09]} 20. Rd3 {[%clk 0:01:48]}  Qa8 {[%clk 0:02:08]} 21. h3 {[%clk 0:01:38]}  Qa4 {[%clk 0:02:05]} 22. Qxa4 {[%clk 0:01:33]}  Rxa4 {[%clk 0:02:06]} 23. Rb1 {[%clk 0:01:32]}  Rfa8 {[%clk 0:01:34]} 24. c5 {[%clk 0:01:32]}  Ba6 {[%clk 0:01:32]} 25. Rc3 {[%clk 0:01:32]}  bxc5 {[%clk 0:00:46]} 26. bxc5 {[%clk 0:01:33]}  h6 {[%clk 0:00:41]} 27. cxd6 {[%clk 0:01:31]}  cxd6 {[%clk 0:00:42]} 28. Rb6 {[%clk 0:01:31]}  Rd8 {[%clk 0:00:32]} 29. Rcc6 {[%clk 0:01:29]}  Bd3 {[%clk 0:00:31]} 30. Rxd6 {[%clk 0:01:03]}  Rxd6 {[%clk 0:00:32]} 31. Rxd6 {[%clk 0:01:04]}  Bxe4 {[%clk 0:00:24]} 32. Rd8+ {[%clk 0:01:02]}  Kh7 {[%clk 0:00:24]} 33. Bg4 {[%clk 0:00:49]}  f5 {[%clk 0:00:24]} 34. Bh5 {[%clk 0:00:46]}  Rd4 {[%clk 0:00:22]} 35. d6 {[%clk 0:00:44]}  f4 {[%clk 0:00:22]} 36. Bg4 {[%clk 0:00:40]}  Bc6 {[%clk 0:00:20]} 37. d7 {[%clk 0:00:36]}  Rd3 {[%clk 0:00:16]} 38. Kf1 {[%clk 0:00:31]}  Bb5 {[%clk 0:00:16]} 39. Bf5+ {[%clk 0:00:30]} 1-0


[Site "https://www.chess.com"]

[Event "Titled Tuesday Blitz May 24 Late 2022"]
[White "Dudzinski, Pawel"]
[Black "Cabarkapa, Novak"]
[WhiteFideId "1117890"]
[BlackFideId "943746"]
[WhiteElo "2011"]
[BlackElo "2454"]
[Result "0-1"]
[Round "01"]
[TimeControl "180+1"]
[Date "2022.05.25"]
[WhiteClock "0:00:34"]
[BlackClock "0:01:39"]

1. e4 {[%clk 0:02:19]}  Nf6 {[%clk 0:02:55]} 2. Nc3 {[%clk 0:02:18]}  d5 {[%clk 0:02:52]} 3. e5 {[%clk 0:02:15]}  d4 {[%clk 0:02:52]} 4. exf6 {[%clk 0:02:14]}  dxc3 {[%clk 0:02:53]} 5. fxg7 {[%clk 0:02:15]}  cxd2+ {[%clk 0:02:53]} 6. Qxd2 {[%clk 0:02:16]}  Qxd2+ {[%clk 0:02:53]} 7. Bxd2 {[%clk 0:02:17]}  Bxg7 {[%clk 0:02:53]} 8. O-O-O {[%clk 0:02:17]}  O-O {[%clk 0:02:52]} 9. Nf3 {[%clk 0:02:11]}  a5 {[%clk 0:02:48]} 10. h3 {[%clk 0:02:09]}  Nc6 {[%clk 0:02:47]} 11. a3 {[%clk 0:02:08]}  Rb8 {[%clk 0:02:42]} 12. Bb5 {[%clk 0:02:08]}  Na7 {[%clk 0:02:41]} 13. Bd3 {[%clk 0:02:01]}  b5 {[%clk 0:02:33]} 14. Bxa5 {[%clk 0:02:00]}  c5 {[%clk 0:02:33]} 15. Be4 {[%clk 0:01:56]}  Bb7 {[%clk 0:02:28]} 16. Rhe1 {[%clk 0:01:55]}  Bxe4 {[%clk 0:02:28]} 17. Rxe4 {[%clk 0:01:56]}  Rb7 {[%clk 0:02:29]} 18. Bd2 {[%clk 0:01:49]}  Nc6 {[%clk 0:02:25]} 19. Rg4 {[%clk 0:01:49]}  Kh8 {[%clk 0:02:25]} 20. Rh4 {[%clk 0:01:44]}  b4 {[%clk 0:02:18]} 21. axb4 {[%clk 0:01:43]}  Ra8 {[%clk 0:02:17]} 22. Bh6 {[%clk 0:01:38]}  Bxh6+ {[%clk 0:02:11]} 23. Rxh6 {[%clk 0:01:37]}  Ra1+ {[%clk 0:02:11]} 24. Kd2 {[%clk 0:01:37]}  Rd7+ {[%clk 0:02:12]} 25. Ke2 {[%clk 0:01:35]}  Raxd1 {[%clk 0:02:10]} 26. Rxc6 {[%clk 0:01:34]}  cxb4 {[%clk 0:02:11]} 27. Rb6 {[%clk 0:01:25]}  Rc1 {[%clk 0:02:11]} 28. Rxb4 {[%clk 0:01:20]}  Rxc2+ {[%clk 0:02:11]} 29. Ke3 {[%clk 0:01:21]}  f6 {[%clk 0:02:07]} 30. Nd4 {[%clk 0:01:14]}  Rc8 {[%clk 0:02:07]} 31. Rb6 {[%clk 0:01:10]}  Kg7 {[%clk 0:02:04]} 32. Nf5+ {[%clk 0:01:07]}  Kf7 {[%clk 0:02:03]} 33. b4 {[%clk 0:01:03]}  Rc3+ {[%clk 0:02:02]} 34. Ke2 {[%clk 0:01:03]}  Rc2+ {[%clk 0:02:01]} 35. Kf3 {[%clk 0:01:03]}  Rb2 {[%clk 0:01:59]} 36. Kg4 {[%clk 0:00:57]}  e6 {[%clk 0:01:58]} 37. Nd6+ {[%clk 0:00:56]}  Kg6 {[%clk 0:01:58]} 38. Kg3 {[%clk 0:00:53]}  h5 {[%clk 0:01:56]} 39. h4 {[%clk 0:00:53]}  Rb3+ {[%clk 0:01:55]} 40. f3 {[%clk 0:00:53]}  Rd3 {[%clk 0:01:50]} 41. Ne4 {[%clk 0:00:53]}  Kf5 {[%clk 0:01:50]} 42. Nc5 {[%clk 0:00:42]}  Rg7+ {[%clk 0:01:50]} 43. Kh3 {[%clk 0:00:41]}  Rd1 {[%clk 0:01:47]} 44. Kh2 {[%clk 0:00:41]}  Rd2 {[%clk 0:01:47]} 45. Nxe6 {[%clk 0:00:36]}  Rgxg2+ {[%clk 0:01:44]} 46. Kh1 {[%clk 0:00:37]}  Rh2+ {[%clk 0:01:41]} 47. Kg1 {[%clk 0:00:37]}  Rxh4 {[%clk 0:01:40]} 48. b5 {[%clk 0:00:34]}  Rb4 {[%clk 0:01:39]} 0-1


[Site "https://www.chess.com"]

[Event "Titled Tuesday Blitz May 24 Late 2022"]
[White "Ezat, Mohamed"]
[Black "Marin Ramirez, Gerardo"]
[WhiteFideId "10600906"]
[BlackFideId "3901068"]
[WhiteElo "2386"]
[BlackElo "1920"]
[Result "1-0"]
[Round "01"]
[TimeControl "180+1"]
[Date "2022.05.25"]
[WhiteClock "0:01:10"]
[BlackClock "0:00:03"]

1. d4 {[%clk 0:03:00]}  d5 {[%clk 0:02:57]} 2. c4 {[%clk 0:03:01]}  Nf6 {[%clk 0:02:55]} 3. cxd5 {[%clk 0:02:59]}  Nxd5 {[%clk 0:02:54]} 4. Nf3 {[%clk 0:02:57]}  e6 {[%clk 0:02:51]} 5. e4 {[%clk 0:02:55]}  Nf6 {[%clk 0:02:47]} 6. Nc3 {[%clk 0:02:55]}  c5 {[%clk 0:02:46]} 7. d5 {[%clk 0:02:52]}  a6 {[%clk 0:02:41]} 8. a4 {[%clk 0:02:49]}  Be7 {[%clk 0:02:40]} 9. Be2 {[%clk 0:02:33]}  O-O {[%clk 0:02:35]} 10. d6 {[%clk 0:02:33]}  Bxd6 {[%clk 0:02:30]} 11. e5 {[%clk 0:02:31]}  Bxe5 {[%clk 0:02:21]} 12. Nxe5 {[%clk 0:02:30]}  Qc7 {[%clk 0:02:17]} 13. Bf4 {[%clk 0:02:29]}  Qb6 {[%clk 0:02:15]} 14. Nc4 {[%clk 0:02:28]}  Qb4 {[%clk 0:01:22]} 15. a5 {[%clk 0:02:21]}  Bd7 {[%clk 0:01:10]} 16. O-O {[%clk 0:02:12]}  Bc6 {[%clk 0:00:38]} 17. Bd2 {[%clk 0:01:53]}  Nbd7 {[%clk 0:00:16]} 18. Na4 {[%clk 0:01:30]}  Qb5 {[%clk 0:00:07]} 19. Ncb6 {[%clk 0:01:26]}  c4 {[%clk 0:00:04]} 20. Nxa8 {[%clk 0:01:22]}  Rxa8 {[%clk 0:00:03]} 21. Nc3 {[%clk 0:01:10]} 1-0


[Site "https://www.chess.com"]

[Event "Titled Tuesday Blitz May 24 Late 2022"]
[White "Galiana Fernandez, Adrian"]
[Black "O`Gorman, Tom"]
[WhiteFideId "32010150"]
[BlackFideId "2508249"]
[WhiteElo "2133"]
[BlackElo "2247"]
[Result "0-1"]
[Round "01"]
[TimeControl "180+1"]
[Date "2022.05.25"]
[WhiteClock "0:00:27"]
[BlackClock "0:01:52"]

1. Nf3 {[%clk 0:01:06]}  Nf6 {[%clk 0:02:56]} 2. g3 {[%clk 0:01:06]}  g6 {[%clk 0:02:55]} 3. Bg2 {[%clk 0:01:06]}  Bg7 {[%clk 0:02:56]} 4. O-O {[%clk 0:01:06]}  O-O {[%clk 0:02:57]} 5. c3 {[%clk 0:01:06]}  d5 {[%clk 0:02:54]} 6. d4 {[%clk 0:01:06]}  Bf5 {[%clk 0:02:50]} 7. Bf4 {[%clk 0:01:04]}  Nbd7 {[%clk 0:02:48]} 8. Nbd2 {[%clk 0:01:04]}  c5 {[%clk 0:02:47]} 9. Ne5 {[%clk 0:01:02]}  Nxe5 {[%clk 0:02:41]} 10. Bxe5 {[%clk 0:01:01]}  Rc8 {[%clk 0:02:38]} 11. Qb3 {[%clk 0:01:01]}  cxd4 {[%clk 0:02:29]} 12. cxd4 {[%clk 0:01:00]}  Qd7 {[%clk 0:02:27]} 13. Rfc1 {[%clk 0:00:56]}  Bh6 {[%clk 0:02:14]} 14. e3 {[%clk 0:00:55]}  Ng4 {[%clk 0:02:04]} 15. Qxd5 {[%clk 0:00:52]}  Qxd5 {[%clk 0:02:03]} 16. Bxd5 {[%clk 0:00:52]}  Rcd8 {[%clk 0:01:53]} 17. e4 {[%clk 0:00:27]}  Bxd2 {[%clk 0:01:52]} 0-1


[Site "https://www.chess.com"]